fUSD/lending_fUSD_20240114
["ID","MTS","AMOUNT","RATE_DAILY","PERIOD"]
[311635924,1705275054728,-500.0,0.00030136,2]
[311635925,1705275054738,-647.5,0.00030136,2]
[311635926,1705275054747,-500.0,0.00030136,2]
[311635927,1705275054756,-500.0,0.00030136,2]
[311635928,1705275054765,-500.0,0.00030136,2]
[311635929,1705275054782,-500.0,0.00030136,2]
[311635930,1705275054796,-500.0,0.00030136,2]
[311635931,1705275054806,-500.0,0.00030136,2]
[311635932,1705275054817,-500.0,0.00030136,2]
[311635933,1705275054827,-500.0,0.00030136,2]
[311635934,1705275054836,-500.0,0.00030136,2]
[311635935,1705275054848,-500.0,0.00030136,2]
[311635936,1705275054857,-500.0,0.00030136,2]
[311635937,1705275054870,-500.0,0.00030136,2]
[311635938,1705275054879,-500.0,0.00030136,2]
[311635939,1705275054889,-672.79,0.00030136,2]
[311635940,1705275054898,-502.13,0.00030136,2]
[311635941,1705275054908,-907.91434343,0.00030136,2]
[311635942,1705275054917,-589.89,0.00030136,2]
[311635943,1705275054928,-919.24,0.00030136,2]
[311635944,1705275054938,-500.0,0.00030136,2]
[311635945,1705275054947,-500.0,0.00030136,2]
[311635946,1705275054957,-500.0,0.00030136,2]
[311635947,1705275054967,-500.0,0.00030136,2]
[311635948,1705275054976,-743.79,0.00030136,2]
[311635949,1705275054986,-500.0,0.00030136,2]
[311635950,1705275054995,-500.0,0.00030136,2]
[311635951,1705275055005,-500.0,0.00030136,2]
[311635952,1705275055014,-500.0,0.00030136,2]
[311635953,1705275055023,-500.0,0.00030136,2]
[311635954,1705275055033,-500.0,0.00030136,2]
[311635955,1705275055043,-500.0,0.00030136,2]
[311635956,1705275055052,-500.0,0.00030136,2]
[311635957,1705275055061,-500.0,0.00030136,2]
[311635958,1705275055071,-500.0,0.00030136,2]
[311635959,1705275055080,-784.7,0.00030136,2]
[311635960,1705275055090,-500.0,0.00030136,2]
[311635961,1705275055099,-500.0,0.00030136,2]
[311635962,1705275055109,-737.53,0.00030136,2]
[311635963,1705275055118,-642.13,0.00030136,2]
[311635964,1705275055131,-500.0,0.00030136,2]
[311635965,1705275055140,-274.6149109,0.00030136,2]
[311635966,1705275055150,-500.0,0.00030136,2]
[311635967,1705275055159,-502.02,0.00030136,2]
[311635968,1705275055168,-500.0,0.00030136,2]
[311635969,1705275055178,-500.0,0.00030136,2]
[311635970,1705275055188,-500.0,0.00030136,2]
[311635971,1705275055197,-500.0,0.00030136,2]
[311635972,1705275055206,-500.0,0.00030136,2]
[311635973,1705275055215,-500.0,0.00030136,2]
[311635974,1705275055225,-500.0,0.00030136,2]
[311635975,1705275055234,-500.0,0.00030136,2]
[311635976,1705275055244,-500.0,0.00030136,2]
[311635977,1705275055254,-500.0,0.00030136,2]
[311635978,1705275055263,-500.0,0.00030136,2]
[311635979,1705275055272,-519.36,0.00030136,2]
[311635980,1705275055282,-510.83,0.00030136,2]
[311635981,1705275055291,-500.0,0.00030136,2]
[311635982,1705275055301,-784.7,0.00030136,2]
[311635983,1705275055310,-298.65024623,0.00030136,2]
[311635984,1705275055319,-500.0,0.00030136,2]
[311635985,1705275055328,-500.0,0.00030136,2]
[311635986,1705275055338,-500.0,0.00030136,2]
[311635987,1705275055348,-500.0,0.00030136,2]
[311635988,1705275055357,-500.0,0.00030136,2]
[311635989,1705275055367,-500.0,0.00030136,2]
[311635990,1705275055376,-500.0,0.00030136,2]
[311635991,1705275055386,-692.25,0.00030136,2]
[311635992,1705275055395,-735.62,0.00030136,2]
[311635993,1705275055405,-500.0,0.00030136,2]
[311635994,1705275055415,-511.42665965,0.00030136,2]
[311635995,1705275055425,-500.0,0.00030136,2]
[311635996,1705275055436,-819.87,0.00030136,2]
[311635997,1705275055446,-500.0,0.00030136,2]
[311635998,1705275055455,-500.0,0.00030136,2]
[311635999,1705275055465,-500.0,0.00030136,2]
[311636000,1705275055474,-1047.25,0.00030136,2]
[311636001,1705275055483,-500.0,0.00030136,2]
[311636002,1705275055492,-500.0,0.00030136,2]
[311636003,1705275055501,-500.0,0.00030136,2]
[311636004,1705275055511,-540.59,0.00030136,2]
[311636005,1705275055520,-500.0,0.00030136,2]
[311636006,1705275055529,-500.0,0.00030136,2]
[311636007,1705275055538,-595.8,0.00030136,2]
[311636008,1705275055547,-508.09927915,0.00030136,2]
[311636009,1705275055556,-500.0,0.00030136,2]
[311636010,1705275055566,-500.0,0.00030136,2]
[311636011,1705275055575,-542.54,0.00030136,2]
[311636012,1705275055584,-500.0,0.00030136,2]
[311636013,1705275055594,-500.0,0.00030136,2]
[311636014,1705275055608,-588.79,0.00030136,2]
[311636015,1705275055617,-500.0,0.00030136,2]
[311636016,1705275055627,-618.71,0.00030136,2]
[311636017,1705275055636,-500.0,0.00030136,2]
[311636018,1705275055646,-694.27,0.00030136,2]
[311636019,1705275055656,-568.78,0.00030136,2]
[311636020,1705275055665,-526.69287494,0.00030136,2]
[311636021,1705275055675,-500.0,0.00030136,2]
[311636022,1705275055684,-500.0,0.00030136,2]
[311636023,1705275055694,-500.0,0.00030136,2]
[311636024,1705275055703,-500.0,0.00030136,2]
[311636025,1705275055713,-500.0,0.00030136,2]
[311636026,1705275055723,-500.0,0.00030136,2]
[311636027,1705275055733,-500.0,0.00030136,2]
[311636028,1705275055743,-800.55,0.00030136,2]
[311636029,1705275055753,-269.34527358,0.00030136,2]
[311636030,1705275055763,-500.0,0.00030136,2]
[311636031,1705275055773,-500.0,0.00030136,2]
[311636032,1705275055783,-500.0,0.00030136,2]
[311636033,1705275055793,-500.0,0.00030136,2]
[311636034,1705275055803,-570.29,0.00030136,2]
[311636035,1705275055813,-500.0,0.00030136,2]
[311636036,1705275055823,-586.84,0.00030136,2]
[311636037,1705275055834,-549.82,0.00030136,2]
[311636038,1705275055844,-500.0,0.00030136,2]
[311636039,1705275055854,-500.0,0.00030136,2]
[311636040,1705275055865,-687.19,0.00030136,2]
[311636041,1705275055875,-500.0,0.00030136,2]
[311636042,1705275055885,-638.91,0.00030136,2]
[311636043,1705275055895,-591.43,0.00030136,2]
[311636044,1705275055906,-886.35,0.00030136,2]
[311636045,1705275055915,-500.0,0.00030136,2]
[311636046,1705275055926,-500.0,0.00030136,2]
[311636047,1705275055935,-1106.87,0.00030136,2]
[311636048,1705275055944,-1111.26,0.00030136,2]
[311636049,1705275055954,-500.0,0.00030136,2]
[311636050,1705275055964,-500.0,0.00030136,2]
[311636051,1705275055974,-500.0,0.00030136,2]
[311636052,1705275055983,-500.0,0.00030136,2]
[311636053,1705275055993,-500.0,0.00030136,2]
[311636054,1705275056002,-642.11,0.00030136,2]
[311636055,1705275056012,-614.22,0.00030136,2]
[311636056,1705275056022,-500.0,0.00030136,2]
[311636057,1705275056031,-313.4438971,0.00030136,2]
[311636058,1705275056067,-186.5561029,0.00030136,2]
[311636059,1705275056078,-231.9438987,0.00030136,2]
[311636060,1705275057077,-514.98040546,0.0002266,2]
[311636061,1705275057087,-158.60896714,0.0002266,2]
[311636062,1705275057097,-735.0,0.00022899,2]
[311636063,1705275057106,-721.55427959,0.00024185,2]
[311636064,1705275057131,-343.60980816,0.00024185,2]
[311636065,1705275057144,-493.34696398,0.00024185,2]
[311636066,1705275057154,-996.0,0.00024185,2]
[311636067,1705275057165,-433.963,0.00024185,2]
[311636068,1705275057174,-359.88863869,0.00026431,4]
[311636069,1705275057185,-859.039,0.00027185,2]
[311636070,1705275057194,-425.0,0.00027185,2]
[311636071,1705275057203,-500.0,0.00027575,2]
[311636072,1705275057212,-500.0,0.00027575,2]
[311636073,1705275057221,-500.0,0.00027575,2]
[311636074,1705275057230,-500.0,0.00027575,2]
[311636075,1705275057240,-500.0,0.00027575,2]
[311636076,1705275057250,-500.0,0.00027575,2]
[311636077,1705275057259,-500.0,0.00027575,2]
[311636078,1705275057268,-500.0,0.00027575,2]
[311636079,1705275057278,-500.0,0.00027575,2]
[311636080,1705275057287,-500.0,0.00027575,2]
[311636081,1705275057297,-500.0,0.00027575,2]
[311636082,1705275057306,-500.0,0.00027575,2]
[311636083,1705275057621,-500.0,0.00027575,2]
[311636084,1705275057670,-268.0561013,0.00030136,2]
[311636085,1705275057680,-500.0,0.00030136,2]
[311636086,1705275057690,-500.0,0.00030136,2]
[311636087,1705275057699,-638.26013466,0.00030136,2]
[311636088,1705275057709,-500.0,0.00030136,2]
[311636089,1705275057718,-500.0,0.00030136,2]
[311636090,1705275057727,-500.0,0.00030136,2]
[311636091,1705275057737,-500.0,0.00030136,2]
[311636092,1705275057746,-500.0,0.00030136,2]
[311636093,1705275057755,-500.0,0.00030136,10]
[311636094,1705275057765,-595.39,0.00030136,2]
[311636095,1705275057774,-500.0,0.00030136,2]
[311636096,1705275057783,-510.39,0.00030136,2]
[311636097,1705275057793,-500.0,0.00030136,2]
[311636098,1705275057802,-500.0,0.00030136,2]
[311636099,1705275057812,-500.0,0.00030136,2]
[311636100,1705275057821,-500.0,0.00030136,2]
[311636101,1705275057830,-500.0,0.00030136,2]
[311636102,1705275057840,-500.0,0.00030136,2]
[311636103,1705275057849,-500.0,0.00030136,2]
[311636104,1705275057858,-500.0,0.00030136,2]
[311636105,1705275057868,-600.77,0.00030136,2]
[311636106,1705275057877,-500.0,0.00030136,2]
[311636107,1705275057886,-500.0,0.00030136,2]
[311636108,1705275057896,-500.0,0.00030136,2]
[311636109,1705275057905,-534.46,0.00030136,2]
[311636110,1705275057915,-500.0,0.00030136,2]
[311636111,1705275057925,-829.12,0.00030136,2]
[311636112,1705275057937,-500.0,0.00030136,2]
[311636113,1705275057947,-642.42,0.00030136,2]
[311636114,1705275057957,-500.0,0.00030136,2]
[311636115,1705275057966,-500.0,0.00030136,2]
[311636116,1705275057976,-500.0,0.00030136,2]
[311636117,1705275057985,-1246.84,0.00030136,2]
[311636118,1705275057995,-500.0,0.00030136,2]
[311636119,1705275058005,-500.0,0.00030136,2]
[311636120,1705275058014,-500.0,0.00030136,2]
[311636121,1705275058023,-500.0,0.00030136,2]
[311636122,1705275058033,-500.0,0.00030136,2]
[311636123,1705275058042,-500.0,0.00030136,2]
[311636124,1705275058051,-509.7,0.00030136,2]
[311636125,1705275058061,-500.0,0.00030136,2]
[311636126,1705275058070,-500.0,0.00030136,2]
[311636127,1705275058079,-500.0,0.00030136,2]
[311636128,1705275058089,-500.0,0.00030136,2]
[311636129,1705275058098,-500.0,0.00030136,2]
[311636130,1705275058107,-573.13754716,0.00030136,2]
[311636131,1705275058117,-799.93,0.00030136,2]
[311636132,1705275058126,-772.24,0.00030136,2]
[311636133,1705275058136,-530.27,0.00030136,2]
[311636134,1705275058147,-500.91,0.00030136,2]
[311636135,1705275058156,-1000.0,0.00030136,2]
[311636136,1705275058166,-500.0,0.00030136,2]
[311636137,1705275058175,-500.0,0.00030136,2]
[311636138,1705275058187,-500.0,0.00030136,2]
[311636139,1705275058196,-500.0,0.00030136,2]
[311636140,1705275058205,-500.0,0.00030136,2]
[311636141,1705275058216,-500.0,0.00030136,2]
[311636142,1705275058227,-500.0,0.00030136,2]
[311636143,1705275058236,-765.88,0.00030136,2]
[311636144,1705275058245,-500.0,0.00030136,2]
[311636145,1705275058255,-500.0,0.00030136,2]
[311636146,1705275058264,-500.0,0.00030136,2]
[311636147,1705275058273,-547.18,0.00030136,2]
[311636148,1705275058283,-858.02,0.00030136,2]
[311636149,1705275058292,-500.0,0.00030136,2]
[311636150,1705275058302,-500.0,0.00030136,7]
[311636151,1705275058312,-608.26,0.00030136,2]
[311636152,1705275058321,-500.0,0.00030136,2]
[311636153,1705275058331,-500.0,0.00030136,2]
[311636154,1705275058340,-500.0,0.00030136,2]
[311636155,1705275058349,-500.0,0.00030136,2]
[311636156,1705275058359,-500.0,0.00030136,2]
[311636157,1705275058369,-500.0,0.00030136,2]
[311636158,1705275058378,-808.0,0.00030136,2]
[311636159,1705275058387,-500.0,0.00030136,2]
[311636160,1705275058397,-500.0,0.00030136,2]
[311636161,1705275058406,-500.0,0.00030136,2]
[311636162,1705275058416,-500.0,0.00030136,2]
[311636163,1705275058425,-650.31,0.00030136,2]
[311636164,1705275058436,-500.0,0.00030136,2]
[311636165,1705275058446,-500.0,0.00030136,2]
[311636166,1705275058455,-500.0,0.00030136,2]
[311636167,1705275058464,-500.0,0.00030136,2]
[311636168,1705275058474,-500.0,0.00030136,2]
[311636169,1705275058483,-569.99,0.00030136,2]
[311636170,1705275058492,-500.0,0.00030136,2]
[311636171,1705275058502,-500.0,0.00030136,2]
[311636172,1705275058511,-500.0,0.00030136,2]
[311636173,1705275058521,-500.0,0.00030136,2]
[311636174,1705275058530,-629.12438524,0.00030136,2]
[311636175,1705275058539,-599.74,0.00030136,2]
[311636176,1705275058549,-500.0,0.00030136,2]
[311636177,1705275058559,-500.0,0.00030136,2]
[311636178,1705275058568,-246.64383636,0.00030136,2]
[311636179,1705275058577,-500.0,0.00030136,2]
[311636180,1705275058587,-500.0,0.00030136,2]
[311636181,1705275058596,-500.0,0.00030136,2]
[311636182,1705275058606,-500.0,0.00030136,2]
[311636183,1705275058615,-500.0,0.00030136,2]
[311636184,1705275058625,-500.0,0.00030136,2]
[311636185,1705275058634,-614.2678195,0.00030136,2]
[311636186,1705275058644,-430.21357631,0.00030136,2]
[311636187,1705275058653,-500.0,0.00030136,2]
[311636188,1705275058663,-500.0,0.00030136,2]
[311636189,1705275058673,-500.0,0.00030136,2]
[311636190,1705275058685,-500.0,0.00030136,2]
[311636191,1705275058695,-500.0,0.00030136,2]
[311636192,1705275058705,-500.0,0.00030136,2]
[311636193,1705275058715,-500.0,0.00030136,2]
[311636194,1705275058725,-500.0,0.00030136,2]
[311636195,1705275058735,-500.0,0.00030136,2]
[311636196,1705275058744,-500.0,0.00030136,2]
[311636197,1705275058754,-500.0,0.00030136,2]
[311636198,1705275058763,-500.0,0.00030136,2]
[311636199,1705275058773,-500.0,0.00030136,2]
[311636200,1705275058784,-971.59,0.00030136,2]
[311636201,1705275058793,-500.0,0.00030136,2]
[311636202,1705275058803,-500.0,0.00030136,2]
[311636203,1705275058812,-650.08,0.00030136,2]
[311636204,1705275058821,-500.0,0.00030136,2]
[311636205,1705275058831,-500.0,0.00030136,2]
[311636206,1705275058840,-500.0,0.00030136,2]
[311636207,1705275058850,-500.0,0.00030136,2]
[311636208,1705275058859,-500.0,0.00030136,2]
[311636209,1705275058869,-500.0,0.00030136,2]
[311636210,1705275058879,-511.9,0.00030136,2]
[311636211,1705275058888,-1303.17,0.00030136,2]
[311636212,1705275058897,-500.0,0.00030136,2]
[311636213,1705275058907,-500.0,0.00030136,2]
[311636214,1705275058917,-500.0,0.00030136,2]
[311636215,1705275058926,-500.0,0.00030136,2]
[311636216,1705275058938,-638.5,0.00030136,2]
[311636217,1705275058948,-764.22,0.00030136,2]
[311636218,1705275058958,-654.99,0.00030136,2]
[311636219,1705275058968,-500.0,0.00030136,2]
[311636220,1705275058978,-500.0,0.00030136,2]
[311636221,1705275058988,-500.0,0.00030136,2]
[311636222,1705275058998,-500.0,0.00030136,2]
[311636223,1705275059008,-500.0,0.00030136,2]
[311636224,1705275059018,-797.79,0.00030136,2]
[311636225,1705275059028,-500.0,0.00030136,2]
[311636226,1705275059038,-500.0,0.00030136,2]
[311636227,1705275059047,-500.0,0.00030136,2]
[311636228,1705275059057,-500.0,0.00030136,2]
[311636229,1705275059067,-550.17238753,0.00030136,2]
[311636230,1705275059076,-500.0,0.00030136,2]
[311636231,1705275059085,-500.0,0.00030136,2]
[311636232,1705275059094,-610.22,0.00030136,2]
[311636233,1705275059104,-500.0,0.00030136,2]
[311636234,1705275059114,-500.0,0.00030136,2]
[311636235,1705275059123,-645.79,0.00030136,2]
[311636236,1705275059133,-596.89,0.00030136,2]
[311636237,1705275059143,-500.0,0.00030136,2]
[311636238,1705275059153,-500.0,0.00030136,2]
[311636239,1705275059162,-500.0,0.00030136,2]
[311636240,1705275059171,-500.0,0.00030136,2]
[311636241,1705275059183,-500.0,0.00030136,2]
[311636242,1705275059193,-500.0,0.00030136,2]
[311636243,1705275059203,-500.0,0.00030136,2]
[311636244,1705275059212,-500.0,0.00030136,2]
[311636245,1705275059222,-500.0,0.00030136,2]
[311636246,1705275059231,-648.27,0.00030136,2]
[311636247,1705275059241,-500.0,0.00030136,2]
[311636248,1705275059250,-504.18092797,0.00030136,2]
[311636249,1705275059259,-500.0,0.00030136,2]
[311636250,1705275059268,-500.0,0.00030136,2]
[311636251,1705275059278,-500.0,0.00030136,2]
[311636252,1705275059287,-500.0,0.00030136,2]
[311636253,1705275059296,-632.63507314,0.00030136,2]
[311636254,1705275059305,-500.0,0.00030136,2]
[311636255,1705275059314,-500.0,0.00030136,2]
[311636256,1705275059324,-159.31912069,0.00030136,2]
[311636257,1705275059333,-500.0,0.00030136,2]
[311636258,1705275059342,-500.0,0.00030136,2]
[311636259,1705275059352,-500.0,0.00030136,2]
[311636260,1705275059362,-500.0,0.00030136,2]
[311636261,1705275059371,-2053.34851141,0.00030136,2]
[311636262,1705275059380,-500.0,0.00030136,2]
[311636263,1705275059389,-500.0,0.00030136,2]
[311636264,1705275059398,-500.0,0.00030136,2]
[311636265,1705275059407,-500.0,0.00030136,2]
[311636266,1705275059416,-509.29200923,0.00030136,2]
[311636267,1705275059426,-619.19,0.00030136,2]
[311636268,1705275059437,-500.0,0.00030136,2]
[311636269,1705275059447,-500.0,0.00030136,2]
[311636270,1705275059457,-1010.6,0.00030136,2]
[311636271,1705275059466,-500.0,0.00030136,2]
[311636272,1705275059476,-500.0,0.00030136,2]
[311636273,1705275059485,-500.0,0.00030136,2]
[311636274,1705275059496,-844.55,0.00030136,2]
[311636275,1705275059506,-500.0,0.00030136,2]
[311636276,1705275059518,-972.54,0.00030136,2]
[311636277,1705275059528,-500.0,0.00030136,2]
[311636278,1705275059538,-500.0,0.00030136,2]
[311636279,1705275059549,-500.0,0.00030136,2]
[311636280,1705275059558,-500.0,0.00030136,2]
[311636281,1705275059568,-500.0,0.00030136,2]
[311636282,1705275059577,-500.0,0.00030136,2]
[311636283,1705275059587,-500.0,0.00030136,2]
[311636284,1705275059596,-500.0,0.00030136,2]
[311636285,1705275059605,-500.0,0.00030136,2]
[311636286,1705275059614,-500.0,0.00030136,2]
[311636287,1705275059624,-500.0,0.00030136,2]
[311636288,1705275059633,-500.0,0.00030136,2]
[311636289,1705275059642,-557.5,0.00030136,2]
[311636290,1705275059651,-500.0,0.00030136,2]
[311636291,1705275059660,-1870.64,0.00030136,2]
[311636292,1705275059670,-500.0,0.00030136,2]
[311636293,1705275059681,-500.0,0.00030136,2]
[311636294,1705275059691,-565.38,0.00030136,2]
[311636295,1705275059700,-500.0,0.00030136,2]
[311636296,1705275059711,-500.0,0.00030136,2]
[311636297,1705275059720,-500.0,0.00030136,2]
[311636298,1705275059730,-510.41,0.00030136,2]
[311636299,1705275059739,-500.0,0.00030136,2]
[311636300,1705275059749,-500.0,0.00030136,2]
[311636301,1705275059759,-554.17,0.00030136,2]
[311636302,1705275059768,-500.0,0.00030136,2]
[311636303,1705275059777,-570.96865396,0.00030136,2]
[311636304,1705275059787,-500.0,0.00030136,2]
[311636305,1705275059797,-500.0,0.00030136,2]
[311636306,1705275059806,-210.26769116,0.00030136,2]
[311636307,1705275059816,-500.0,0.00030136,2]
[311636308,1705275059825,-500.0,0.00030136,2]
[311636309,1705275059835,-722.01,0.00030136,2]
[311636310,1705275059846,-500.0,0.00030136,2]
[311636311,1705275059856,-500.0,0.00030136,2]
[311636312,1705275059866,-500.0,0.00030136,2]
[311636313,1705275059875,-500.0,0.00030136,2]
[311636314,1705275059885,-500.0,0.00030136,2]
[311636315,1705275059895,-500.0,0.00030136,2]
[311636316,1705275059905,-269.7734797,0.00030136,2]
[311636317,1705275059915,-500.0,0.00030136,2]
[311636318,1705275059925,-638.69874459,0.00030136,2]
[311636319,1705275059937,-500.0,0.00030136,2]
[311636320,1705275059947,-500.0,0.00030136,2]
[311636321,1705275059957,-500.0,0.00030136,2]
[311636322,1705275059967,-500.0,0.00030136,2]
[311636323,1705275059976,-500.0,0.00030136,2]
[311636324,1705275059986,-500.0,0.00030136,2]
[311636325,1705275059995,-500.0,0.00030136,2]
[311636326,1705275060005,-1255.87,0.00030136,2]
[311636327,1705275060014,-500.0,0.00030136,2]
[311636328,1705275060024,-500.0,0.00030136,2]
[311636329,1705275060034,-500.0,0.00030136,2]
[311636330,1705275060043,-769.62,0.00030136,2]
[311636331,1705275060053,-501.46994044,0.00030136,2]
[311636332,1705275060062,-711.34,0.00030136,2]
[311636333,1705275060072,-505.42737154,0.00030136,2]
[311636334,1705275060081,-518.61019887,0.00030136,2]
[311636335,1705275060090,-500.0,0.00030136,2]
[311636336,1705275060100,-500.0,0.00030136,2]
[311636337,1705275060109,-738.65,0.00030136,2]
[311636338,1705275060119,-501.61711761,0.00030136,2]
[311636339,1705275060131,-500.0,0.00030136,2]
[311636340,1705275060140,-500.0,0.00030136,2]
[311636341,1705275060150,-500.0,0.00030136,2]
[311636342,1705275060159,-500.0,0.00030136,2]
[311636343,1705275060169,-638.64,0.00030136,2]
[311636344,1705275060179,-500.0,0.00030136,2]
[311636345,1705275060189,-500.0,0.00030136,2]
[311636346,1705275060198,-500.0,0.00030136,2]
[311636347,1705275060208,-317.85902977,0.00030136,2]
[311636348,1705275060218,-628.19,0.00030136,2]
[311636349,1705275060228,-500.0,0.00030136,2]
[311636350,1705275060238,-500.0,0.00030136,2]
[311636351,1705275060247,-500.0,0.00030136,2]
[311636352,1705275060257,-500.0,0.00030136,2]
[311636353,1705275060266,-500.0,0.00030136,2]
[311636354,1705275060276,-500.0,0.00030136,2]
[311636355,1705275060285,-500.0,0.00030136,2]
[311636356,1705275060294,-500.0,0.00030136,2]
[311636357,1705275060303,-1131.42,0.00030136,2]
[311636358,1705275060312,-578.14169789,0.00030136,2]
[311636359,1705275060322,-500.0,0.00030136,2]
[311636360,1705275060331,-500.0,0.00030136,2]
[311636361,1705275060340,-500.0,0.00030136,2]
[311636362,1705275060349,-812.71,0.00030136,2]
[311636363,1705275060359,-500.0,0.00030136,2]
[311636364,1705275060368,-520.72,0.00030136,2]
[311636365,1705275060378,-500.0,0.00030136,2]
[311636366,1705275060387,-1007.85,0.00030136,2]
[311636367,1705275060396,-500.0,0.00030136,2]
[311636368,1705275060405,-500.0,0.00030136,2]
[311636369,1705275060414,-2073.97,0.00030136,2]
[311636370,1705275060423,-500.0,0.00030136,2]
[311636371,1705275060434,-500.0,0.00030136,2]
[311636372,1705275060443,-500.0,0.00030136,2]
[311636373,1705275060452,-500.0,0.00030136,2]
[311636374,1705275060462,-901.1,0.00030136,2]
[311636375,1705275060471,-500.0,0.00030136,2]
[311636376,1705275060480,-500.0,0.00030136,2]
[311636377,1705275060490,-500.0,0.00030136,2]
[311636378,1705275060499,-500.0,0.00030136,2]
[311636379,1705275060508,-500.0,0.00030136,2]
[311636380,1705275060517,-500.53977673,0.00030136,2]
[311636381,1705275060526,-502.78838797,0.00030136,2]
[311636382,1705275060535,-500.0,0.00030136,2]
[311636383,1705275060546,-500.0,0.00030136,2]
[311636384,1705275060556,-500.0,0.00030136,2]
[311636385,1705275060565,-278.85,0.00030136,2]
[311636386,1705275060574,-591.79,0.00030136,2]
[311636387,1705275060583,-755.56,0.00030136,2]
[311636388,1705275060593,-500.0,0.00030136,2]
[311636389,1705275060602,-500.0,0.00030136,2]
[311636390,1705275060611,-1750.33,0.00030136,2]
[311636391,1705275060620,-1280.79,0.00030136,2]
[311636392,1705275060629,-500.0,0.00030136,2]
[311636393,1705275060640,-3932.47,0.00030136,2]
[311636394,1705275060842,-500.0,0.00030136,2]
[311636395,1705275060851,-500.0,0.00030136,2]
[311636396,1705275060861,-500.0,0.00030136,2]
[311636397,1705275060870,-500.0,0.00030136,2]
[311636398,1705275060880,-500.0,0.00030136,2]
[311636399,1705275060889,-500.0,0.00030136,2]
[311636400,1705275060898,-500.0,0.00030136,2]
[311636401,1705275060908,-500.0,0.00030136,2]
[311636402,1705275060917,-569.57,0.00030136,2]
[311636403,1705275060926,-1385.02,0.00030136,2]
[311636404,1705275060938,-274.27555255,0.00030136,2]
[311636405,1705275060947,-500.0,0.00030136,2]
[311636406,1705275060956,-500.0,0.00030136,2]
[311636407,1705275060965,-500.0,0.00030136,2]
[311636408,1705275060975,-500.0,0.00030136,5]
[311636409,1705275060985,-500.0,0.00030136,2]
[311636410,1705275060994,-289.41071066,0.00030136,2]
[311636411,1705275061004,-4300.55,0.00030136,2]
[311636412,1705275061014,-500.0,0.00030136,2]
[311636413,1705275061023,-500.0,0.00030136,2]
[311636414,1705275061032,-1474.09,0.00030136,2]
[311636415,1705275061042,-590.39,0.00030136,2]
[311636416,1705275061051,-639.1,0.00030136,2]
[311636417,1705275061060,-500.0,0.00030136,2]
[311636418,1705275061069,-500.0,0.00030136,2]
[311636419,1705275061079,-589.88,0.00030136,2]
[311636420,1705275061088,-500.0,0.00030136,2]
[311636421,1705275061097,-500.0,0.00030136,2]
[311636422,1705275061106,-943.88,0.00030136,2]
[311636423,1705275061115,-500.0,0.00030136,2]